fUSD/lending_fUSD_20251222
["ID","MTS","AMOUNT","RATE_DAILY","PERIOD"]
[399468920,1766391032491,-1838.51,0.00012473,2]
[399468921,1766391032500,-5689.35,0.00012473,2]
[399468922,1766391032509,-9999.99,0.00012473,2]
[399468923,1766391032518,-9999.99,0.00012473,2]
[399468924,1766391032527,-150.99,0.00012473,2]
[399468925,1766391032540,-9999.99,0.00012473,2]
[399468926,1766391032550,-65528.50064422,0.00012473,2]
[399468927,1766391032562,-879.90507808,0.00012473,2]
[399468928,1766391032575,-1046.51182598,0.00012473,2]
[399468932,1766391038404,-286.72493857,0.00012473,2]
[399468933,1766391038416,-11109.90751315,0.00012473,2]
[399468934,1766391038426,-4495.59,0.00012473,2]
[399468935,1766391038436,-999.99,0.00012473,2]
[399468936,1766391038446,-500.0,0.00012515,2]
[399468937,1766391038460,-323.02,0.00012549,2]
[399468938,1766391038470,-224.06009191,0.00012721,2]
[399468939,1766391038480,-150.0,0.00012741,2]
[399468940,1766391038490,-402.06888544,0.00012765,2]
[399468941,1766391038500,-11051.04859471,0.00012823,2]
[399468942,1766391038510,-867.03380004,0.00012825,2]
[399468943,1766391038520,-300.0,0.0001285,2]
[399468944,1766391038531,-250.0,0.0001285,2]
[399468945,1766391038544,-308.35,0.00012853,2]
[399468946,1766391038554,-420.0,0.00012914,2]
[399468947,1766391038564,-151.0,0.00012922,2]
[399468948,1766391038575,-151.0,0.00012922,2]
[399468949,1766391038585,-265.57659995,0.00012922,2]
[399468950,1766391038595,-294.69535556,0.00012924,2]
[399468951,1766391038605,-167.34566321,0.00012924,2]
[399468952,1766391038616,-172.06122309,0.00012924,2]
[399468953,1766391038626,-184786.0491629,0.00012925,2]
[399468954,1766391038639,-46089.6455311,0.00012925,2]
[399468959,1766391040335,-712.15704519,0.00012925,2]
[399468967,1766391043363,-335.67766076,0.00012925,2]
[399468968,1766391043416,-331.42747888,0.00012925,2]
[399468970,1766391046341,-265.60627094,0.00012925,2]
[399468971,1766391046354,-602.0,0.00012925,2]
[399468972,1766391046512,-34562.77419444,0.00012925,2]
[399468973,1766391046524,-979.83049372,0.00012925,2]
[399468974,1766391046539,-2343.1709747,0.00012925,2]
[399468975,1766391066892,620.26295688,0.000226,120]
[399468986,1766391144498,10000.0,0.00022,30]
[399468987,1766391163518,10000.0,0.00022,30]
[399468988,1766391183155,10000.0,0.00022,30]
[399468989,1766391210895,10000.0,0.00022,30]
[399468990,1766391234531,10000.0,0.00022,30]
[399468991,1766391251918,3600.0,0.00022,30]
[399468995,1766391717692,1054.09474225,0.00013041,3]
[399469001,1766392125922,999.0,0.00011374,3]
[399469013,1766392232260,-245.0,0.00011618,2]
[399469014,1766392232270,-160.05,0.00011618,2]
[399469016,1766392232296,-1439.95,0.00011618,2]
[399469018,1766392232305,-195.0,0.0001164,2]
[399469033,1766392232627,-250.0,0.00011661,2]
[399469036,1766392232637,-4689.97,0.00011744,2]
[399469038,1766392232647,-300.0,0.00011777,2]
[399469041,1766392232656,-1200.0,0.00011777,2]
[399469043,1766392232666,-11815.59,0.00011778,2]
[399469045,1766392232676,-150.0,0.00011779,2]
[399469047,1766392232686,-183.14,0.00011839,2]
[399469049,1766392232695,-29002.0,0.00011873,2]
[399469051,1766392232705,-15680.89,0.00011944,2]
[399469053,1766392232715,-1001.83222297,0.00011988,2]
[399469055,1766392232724,-298.29247323,0.00011988,2]
[399469057,1766392232734,-150.0,0.00011988,2]
[399469059,1766392232743,-1852.42,0.00011989,2]
[399469061,1766392232753,-150.99,0.00011989,2]
[399469063,1766392232762,-9999.99,0.00011989,2]
[399469065,1766392232771,-29217.23,0.00011989,2]
[399469067,1766392232782,-150.99,0.00011989,2]
[399469069,1766392232791,-932.303,0.00011989,2]
[399469071,1766392232801,-196.856,0.00011989,2]
[399469073,1766392232810,-299.99,0.00011989,2]
[399469075,1766392232819,-151.0,0.00012158,2]
[399469077,1766392232828,-190.01,0.00012502,2]
[399469079,1766392232839,-218.23,0.00012502,2]
[399469081,1766392232850,-500.0,0.00012541,2]
[399469083,1766392232862,-589.0,0.00012541,2]
[399469085,1766392232871,-500.0,0.00012568,2]
[399469087,1766392232880,-589.0,0.00012568,2]
[399469088,1766392232889,-481.11,0.0001257,2]
[399469090,1766392232901,-34474.0902,0.0001257,2]
[399469092,1766392232910,-980.15777289,0.00012578,2]
[399469094,1766392232920,-275.46568858,0.00012578,2]
[399469095,1766392232929,-500.0,0.00012596,2]
[399469096,1766392232943,-589.0,0.00012596,2]
[399469097,1766392232952,-500.0,0.00012604,2]
[399469098,1766392232962,-500.0,0.00012623,2]
[399469099,1766392232971,-589.0,0.00012623,2]
[399469100,1766392232981,-500.0,0.00012631,2]
[399469101,1766392232990,-275.46568857,0.00012647,2]
[399469102,1766392233000,-500.0,0.00012651,2]
[399469103,1766392233010,-589.0,0.00012651,2]
[399469104,1766392233019,-500.0,0.00012659,2]
[399469105,1766392233028,-151.0,0.00012667,2]
[399469106,1766392233038,-500.0,0.00012669,2]
[399469107,1766392233047,-391.13493764,0.00012669,2]
[399469108,1766392233056,-219.6653118,0.00012669,2]
[399469109,1766392233066,-151.0,0.0001267,2]
[399469110,1766392233075,-261.497182,0.0001267,2]
[399469111,1766392233084,-151.0,0.0001267,2]
[399469112,1766392233094,-224.06009191,0.0001267,2]
[399469113,1766392233103,-45216.61142847,0.0001267,2]
[399469114,1766392233115,-12163.94999454,0.0001267,2]
[399469115,1766392233130,-2661.38726421,0.0001267,2]
[399469116,1766392233142,-65333.78848201,0.0001267,2]
[399469117,1766392233153,-7474.91568746,0.0001267,2]
[399469118,1766392233164,-2154.86186328,0.0001267,2]
[399469119,1766392233175,-1391.9138548,0.0001267,2]
[399469120,1766392233186,-371.3259998,0.0001267,2]
[399469121,1766392233215,-488.05298989,0.0001267,2]
[399469122,1766392233226,-2170.0,0.0001267,2]
[399469124,1766392238580,-89320.0,0.0001267,2]
[399469125,1766392238592,-771253.19243554,0.0001267,2]
[399469126,1766392238601,-500.0,0.00012678,2]
[399469127,1766392238611,-589.0,0.00012678,2]
[399469128,1766392238620,-500.0,0.00012686,2]
[399469129,1766392238630,-500.0,0.00012705,2]
[399469130,1766392238639,-589.0,0.00012705,2]
[399469131,1766392238649,-500.0,0.00012714,2]
[399469132,1766392238658,-275.46568857,0.00012715,2]
[399469133,1766392238668,-500.0,0.00012733,2]
[399469134,1766392238677,-589.0,0.00012733,2]
[399469135,1766392238686,-500.0,0.00012741,2]
[399469136,1766392238696,-11198.496,0.00012751,2]
[399469137,1766392238705,-1490.09817043,0.0001276,2]
[399469138,1766392238714,-500.0,0.0001276,2]
[399469139,1766392238723,-589.0,0.0001276,2]
[399469140,1766392238733,-500.0,0.00012768,2]
[399469141,1766392238742,-69103.6139488,0.0001277,2]
[399469142,1766392238752,-269.2053129,0.0001277,2]
[399469143,1766392238762,-49767.2712359,0.0001277,2]
[399469144,1766392238772,-11585.3909516,0.0001277,2]
[399469146,1766392238781,-151.0,0.0001277,2]
[399469148,1766392238791,-151.0,0.0001277,2]
[399469150,1766392238801,-153.202067,0.0001277,2]
[399469151,1766392238811,-341.499816,0.0001277,2]
[399469152,1766392238820,-341.499816,0.0001277,2]
[399469153,1766392238829,-255.307319,0.0001277,2]
[399469154,1766392238839,-341.499816,0.0001277,2]
[399469155,1766392238848,-341.499816,0.0001277,2]
[399469156,1766392238862,-151.0,0.0001277,2]
[399469157,1766392238871,-151.0,0.0001277,2]
[399469158,1766392238880,-151.0,0.0001277,2]
[399469159,1766392238890,-151.0,0.0001277,2]
[399469160,1766392238901,-151.0,0.0001277,2]
[399469161,1766392238911,-12201.4815459,0.0001277,2]
[399469162,1766392238920,-221.325547,0.0001277,2]
[399469163,1766392238932,-195.0,0.0001278,2]
[399469164,1766392238941,-195.0,0.0001278,2]
[399469165,1766392238951,-195.0,0.0001278,2]
[399469166,1766392238960,-312.0,0.00012785,2]
[399469167,1766392238970,-500.0,0.00012788,2]
[399469168,1766392238980,-589.0,0.00012788,2]
[399469169,1766392238990,-463.82750768,0.00012796,2]
[399469170,1766392239000,-8535.37736216,0.00012797,2]
[399469171,1766392239010,-500.0,0.00012815,2]
[399469172,1766392239020,-589.0,0.00012815,2]
[399469173,1766392239029,-907.1735,0.00012825,2]
[399469174,1766392239039,-151.0,0.00012825,2]
[399469175,1766392239048,-151.0,0.00012825,2]
[399469176,1766392239058,-152.942767,0.00012825,2]
[399469177,1766392239067,-151.0,0.00012825,2]
[399469178,1766392239077,-300.0,0.00012827,2]
[399469179,1766392239086,-518.0,0.00012842,2]
[399469180,1766392239095,-589.0,0.00012842,2]
[399469181,1766392239105,-589.0,0.0001287,2]
[399469182,1766392239114,-279.575532,0.0001287,2]
[399469183,1766392239124,-341.499816,0.0001287,2]
[399469184,1766392239133,-341.499816,0.0001287,2]
[399469185,1766392239142,-341.499816,0.0001287,2]
[399469186,1766392239152,-341.499816,0.0001287,2]
[399469187,1766392239161,-151.0,0.0001287,2]
[399469188,1766392239171,-151.0,0.00012878,2]
[399469189,1766392239180,-151.0,0.00012878,2]
[399469190,1766392239190,-151.0,0.00012878,2]
[399469191,1766392239199,-151.0,0.00012878,2]
[399469192,1766392239208,-589.0,0.00012897,2]
[399469193,1766392239218,-919.93475025,0.0001292,2]
[399469194,1766392239227,-589.0,0.00012925,2]
[399469195,1766392239237,-420.0,0.00012931,2]
[399469196,1766392239247,-359.51458071,0.00012943,2]
[399469197,1766392239258,-589.0,0.00012952,2]
[399469198,1766392239268,-1680.0,0.00012954,2]
[399469199,1766392239277,-3018.19191469,0.0001297,2]
[399469200,1766392239288,-151.0,0.00012979,2]
[399469201,1766392239298,-151.0,0.00012979,2]
[399469202,1766392239307,-151.0,0.00012979,2]
[399469203,1766392239317,-589.0,0.00012979,2]
[399469204,1766392239326,-59683.17424291,0.00012979,2]
[399469205,1766392239336,-41326.99785418,0.0001299,2]
[399469206,1766392239346,-151.0,0.0001299,2]
[399469207,1766392239355,-151.0,0.0001299,2]
[399469208,1766392239364,-151.0,0.0001299,2]
[399469209,1766392239374,-276.047342,0.0001299,2]
[399469210,1766392239383,-151.0,0.0001299,2]
[399469211,1766392239392,-4412.95179133,0.00013,2]
[399469212,1766392239401,-589.0,0.00013007,2]
[399469213,1766392239411,-341.499816,0.0001302,2]
[399469214,1766392239419,-341.499816,0.0001302,2]
[399469215,1766392239428,-341.499816,0.0001302,2]
[399469216,1766392239437,-341.499816,0.0001302,2]
[399469217,1766392239447,-589.0,0.00013034,2]
[399469218,1766392239456,-5328.93897617,0.0001305,2]
[399469219,1766392239465,-589.0,0.00013062,2]
[399469220,1766392239474,-55903.7299259,0.00013065,2]
[399469221,1766392239484,-25465.1818003,0.00013065,2]
[399469222,1766392239493,-179.664018,0.00013065,2]
[399469223,1766392239503,-151.0,0.00013065,2]
[399469224,1766392239512,-248.941271,0.00013065,2]
[399469225,1766392239522,-341.499816,0.00013065,2]
[399469226,1766392239531,-341.499816,0.00013065,2]
[399469227,1766392239540,-341.499816,0.00013065,2]
[399469228,1766392239549,-341.499816,0.00013065,2]
[399469229,1766392239558,-151.0,0.00013065,2]
[399469230,1766392239567,-151.0,0.00013065,2]
[399469231,1766392239577,-151.0,0.00013065,2]
[399469232,1766392239588,-151.0,0.00013065,2]
[399469233,1766392239598,-255.0,0.00013067,2]
[399469234,1766392239607,-1600.0,0.0001307,2]
[399469235,1766392239616,-460.35056124,0.00013075,2]
[399469236,1766392239625,-589.0,0.00013089,2]
[399469237,1766392239635,-12270.9455332,0.00013096,2]
[399469238,1766392239644,-589.0,0.00013116,2]
[399469239,1766392239653,-151.0,0.00013125,2]
[399469240,1766392239663,-269.63214185,0.00013125,2]
[399469241,1766392239672,-2306.59,0.00013125,2]
[399469242,1766392239681,-589.0,0.00013144,2]
[399469243,1766392239690,-602.0,0.00013171,2]
[399469244,1766392239700,-289.61337275,0.00013182,2]
[399469245,1766392239709,-980.15777282,0.00013195,2]
[399469246,1766392239718,-7000.0,0.0001323,2]
[399469247,1766392239727,-7000.0,0.0001335,2]
[399469248,1766392239736,-2306.59,0.00013399,2]
[399469249,1766392239745,-7000.0,0.0001348,2]
[399469250,1766392239754,-1000.0,0.000135,2]
[399469251,1766392239764,-308.35,0.0001353,2]
[399469252,1766392239773,-341.499816,0.00013532,2]
[399469253,1766392239783,-341.499816,0.00013532,2]
[399469254,1766392239793,-341.499816,0.00013532,2]
[399469255,1766392239802,-341.49981037,0.00013532,2]
[399469256,1766392239813,-151.0,0.00013532,2]
[399469257,1766392239823,-151.0,0.00013532,2]
[399469258,1766392239833,-151.0,0.00013532,2]
[399469259,1766392239843,-919.9347502,0.00013583,2]
[399469260,1766392239852,-7000.0,0.000136,2]
[399469261,1766392239864,-500.0,0.00013643,2]
[399469262,1766392239874,-500.0,0.00013643,2]
[399469263,1766392239883,-500.37919946,0.00013643,2]
[399469264,1766392239891,-163.15562332,0.00013643,2]
[399469265,1766392239902,-172.81941254,0.00013643,2]
[399469266,1766392239911,-165.58172588,0.00013643,2]
[399469267,1766392239920,-163.76931911,0.00013643,2]
[399469268,1766392239929,-500.0,0.00013643,2]
[399469269,1766392239940,-500.0,0.00013643,2]
[399469270,1766392239949,-500.0,0.00013643,2]
[399469271,1766392239958,-172.65369625,0.00013643,2]
[399469272,1766392239967,-500.0,0.00013643,2]
[399469273,1766392239976,-500.0,0.00013643,2]
[399469274,1766392239986,-500.0,0.00013643,2]
[399469275,1766392239995,-500.0,0.00013643,2]
[399469276,1766392240006,-500.0,0.00013643,2]
[399469277,1766392240015,-500.0,0.00013643,2]
[399469278,1766392240025,-500.0,0.00013643,2]
[399469279,1766392240035,-176.72157044,0.00013643,2]
[399469280,1766392240043,-224.11516546,0.00013643,2]
[399469281,1766392240052,-160.1870397,0.00013643,2]
[399469282,1766392240061,-500.0,0.00013643,2]
[399469283,1766392240070,-500.0,0.00013643,2]
[399469284,1766392240079,-500.0,0.00013643,2]
[399469285,1766392240089,-500.0,0.00013643,2]
[399469286,1766392240367,-500.0,0.00013643,2]
[399469287,1766392240377,-500.0,0.00013643,2]
[399469288,1766392240386,-500.0,0.00013643,2]
[399469289,1766392240396,-500.0,0.00013643,2]
[399469290,1766392240405,-500.0,0.00013643,2]
[399469291,1766392240414,-500.0,0.00013643,2]
[399469292,1766392240423,-500.0,0.00013643,2]
[399469293,1766392240432,-165.8458301,0.00013643,2]
[399469294,1766392240441,-169.3348032,0.00013643,2]
[399469296,1766392240450,-500.0,0.00013643,2]
[399469298,1766392240460,-500.0,0.00013643,2]
[399469300,1766392240469,-160.27643791,0.00013643,2]
[399469303,1766392240479,-165.36365012,0.00013643,2]
[399469304,1766392240488,-201.72114218,0.00013643,2]
[399469305,1766392240498,-165.49824072,0.00013643,2]
[399469306,1766392240508,-500.0,0.00013643,2]
[399469307,1766392240517,-500.0,0.00013643,2]
[399469308,1766392240526,-500.0,0.00013643,2]
[399469309,1766392240535,-500.0,0.00013643,2]
[399469310,1766392240544,-500.0,0.00013643,2]
[399469311,1766392240554,-162.91531541,0.00013643,2]
[399469312,1766392240563,-216.339116,0.00013643,2]
[399469313,1766392240572,-500.0,0.00013643,2]
[399469314,1766392240581,-500.0,0.00013643,2]
[399469315,1766392240591,-500.51901365,0.00013643,2]
[399469316,1766392240600,-168.65037374,0.00013643,2]
[399469317,1766392240609,-500.81193052,0.00013643,2]
[399469318,1766392240618,-500.0,0.00013643,2]
[399469319,1766392240627,-500.0,0.00013643,2]
[399469320,1766392240636,-151.0,0.00013643,2]
[399469321,1766392240645,-500.0,0.00013671,2]
[399469322,1766392240654,-2306.59,0.00013673,2]
[399469323,1766392240663,-500.0,0.00013698,2]
[399469324,1766392240673,-500.0,0.00013698,2]
[399469325,1766392240682,-515.57929643,0.00013698,2]
[399469326,1766392240691,-373.89365293,0.00013698,2]
[399469327,1766392240701,-500.0,0.00013698,2]
[399469328,1766392240710,-500.0,0.00013698,2]
[399469329,1766392240720,-500.0,0.00013698,2]
[399469330,1766392240729,-500.0,0.00013698,2]
[399469331,1766392240738,-550.0,0.00013698,2]
[399469332,1766392240747,-500.0,0.00013698,2]
[399469333,1766392240758,-500.0,0.00013698,2]
[399469334,1766392240767,-500.0,0.00013698,2]
[399469335,1766392240777,-500.0,0.00013698,2]
[399469336,1766392240786,-500.0,0.00013698,2]
[399469337,1766392240797,-500.0,0.00013698,2]
[399469338,1766392240806,-500.0,0.00013698,2]
[399469339,1766392240815,-500.0,0.00013698,2]
[399469340,1766392240824,-500.0,0.00013698,2]
[399469341,1766392240833,-500.0,0.00013698,2]
[399469342,1766392240842,-500.0,0.00013698,2]
[399469343,1766392240852,-344.92521507,0.00013698,2]
[399469344,1766392240865,-500.0,0.00013698,2]
[399469345,1766392240875,-500.0,0.00013698,2]
[399469346,1766392240886,-500.0,0.00013698,2]
[399469347,1766392240895,-500.0,0.00013698,2]
[399469348,1766392240905,-500.0,0.00013698,2]
[399469349,1766392240915,-500.0,0.00013698,2]
[399469350,1766392240924,-500.0,0.00013698,2]
[399469351,1766392240935,-500.0,0.00013698,2]
[399469352,1766392240944,-500.0,0.00013698,2]
[399469353,1766392240953,-511.45544987,0.00013698,2]
[399469354,1766392240962,-500.0,0.00013698,2]
[399469355,1766392240971,-500.0,0.00013698,2]
[399469356,1766392240980,-500.0,0.00013698,2]
[399469357,1766392240990,-500.0,0.00013698,2]
[399469358,1766392240999,-500.0,0.00013698,2]
[399469359,1766392241008,-500.0,0.00013698,2]
[399469360,1766392241017,-500.0,0.00013698,2]
[399469361,1766392241027,-500.0,0.00013698,2]
[399469362,1766392241036,-200.0,0.00013699,2]
[399469363,1766392241047,-1000.0,0.00013699,2]
[399469364,1766392241056,-151.0,0.00013699,2]
[399469365,1766392241065,-151.0,0.00013699,2]
[399469366,1766392241074,-151.0,0.00013699,2]
[399469367,1766392241083,-151.0,0.00013699,2]
[399469368,1766392241092,-153.873509,0.00013699,2]
[399469369,1766392241102,-612.93,0.00013699,2]
[399469371,1766392241111,-151.0,0.00013699,2]
[399469372,1766392241121,-151.0,0.00013699,2]
[399469375,1766392241131,-151.0,0.00013699,2]
[399469376,1766392241141,-151.0,0.00013699,2]
[399469379,1766392241150,-151.0,0.00013699,2]
[399469381,1766392241159,-152.325413,0.00013699,2]
[399469383,1766392241168,-151.0,0.00013699,2]
[399469384,1766392241179,-151.0,0.00013699,2]
[399469386,1766392241189,-197.134081,0.00013699,2]
[399469389,1766392241199,-500.0,0.00013699,2]
[399469390,1766392241208,-500.0,0.00013699,2]
[399469393,1766392241217,-500.0,0.00013699,2]
[399469394,1766392241227,-500.0,0.00013699,2]
[399469397,1766392241236,-500.0,0.00013699,2]
[399469399,1766392241245,-500.0,0.00013699,2]
[399469400,1766392241254,-400.0,0.00013699,2]
[399469402,1766392241264,-500.0,0.00013699,2]
[399469404,1766392241274,-500.0,0.00013699,2]
[399469406,1766392241284,-500.0,0.00013699,2]
[399469408,1766392241293,-500.0,0.00013699,2]
[399469410,1766392241302,-620.44,0.000137,2]
[399469412,1766392241312,-620.44,0.000137,2]
[399469414,1766392241322,-620.44,0.000137,2]
[399469416,1766392241332,-620.44,0.000137,2]
[399469418,1766392241341,-620.44,0.000137,2]
[399469421,1766392241351,-7000.0,0.0001373,2]
[399469422,1766392241360,-980.15777282,0.00013813,2]
[399469424,1766392241370,-500.0,0.00013836,2]
[399469426,1766392241380,-7000.0,0.0001385,2]
[399469429,1766392241389,-2306.59,0.00013947,2]
[399469430,1766392241398,-1500.0,0.00014,2]
[399469433,1766392241407,-1050.83828415,0.00014,2]
[399469434,1766392241416,-169.43415984,0.00014054,2]
[399469438,1766392241426,-162.76,0.00014088,2]
[399469441,1766392241436,-406.9358162,0.00014091,2]
[399469442,1766392241444,-200.0,0.00014121,2]
[399469444,1766392241453,-250.0,0.00014157,2]
[399469446,1766392241462,-200.0,0.00014162,2]
[399469449,1766392241472,-12201.4815459,0.00014177,2]
[399469451,1766392241482,-151.0,0.00014183,2]
[399469453,1766392241492,-1000.0,0.00014189,2]
[399469454,1766392241502,-500.0,0.0001419,2]
[399469457,1766392241512,-500.0,0.0001419,2]
[399469459,1766392241522,-500.0,0.00014191,2]
[399469461,1766392241531,-1000.0,0.00014191,2]
[399469463,1766392241540,-222.91830755,0.00014191,2]
[399469465,1766392241550,-1000.0,0.00014191,2]
[399469467,1766392241559,-550.36391425,0.00014191,2]
[399469469,1766392241568,-1000.0,0.00014191,2]
[399469471,1766392241577,-535.43855747,0.00014191,2]
[399469472,1766392241587,-537.36765375,0.00014191,2]
[399469475,1766392241596,-1000.0,0.00014191,2]
[399469477,1766392241606,-1000.0,0.00014191,2]
[399469478,1766392241616,-1000.0,0.00014191,2]
[399469480,1766392241625,-1000.0,0.00014191,2]
[399469483,1766392241636,-1000.0,0.00014191,2]
[399469485,1766392241647,-1000.0,0.00014191,2]
[399469487,1766392241656,-1000.0,0.00014191,2]
[399469489,1766392241665,-484.24574485,0.00014191,2]
[399469490,1766392241674,-1000.0,0.00014191,2]
[399469493,1766392241683,-1000.0,0.00014191,2]
[399469495,1766392241692,-1000.0,0.00014191,2]
[399469497,1766392241701,-1000.0,0.00014191,2]
[399469498,1766392241711,-235.68882783,0.00014191,2]
[399469500,1766392241720,-1000.0,0.00014191,2]
[399469503,1766392241729,-1000.0,0.00014191,2]
[399469504,1766392241738,-1000.0,0.00014191,2]
[399469505,1766392241747,-1000.0,0.00014191,2]
[399469506,1766392241756,-1000.0,0.00014191,2]
[399469507,1766392241766,-866.5623891,0.00014191,2]
[399469509,1766392241775,-453.73344194,0.00014191,2]
[399469510,1766392241784,-1000.0,0.00014191,2]
[399469511,1766392241793,-1000.0,0.00014191,2]
[399469512,1766392241802,-1000.0,0.00014191,2]
[399469513,1766392241812,-1000.0,0.00014191,2]
[399469514,1766392241820,-587.0,0.00014199,2]
[399469515,1766392241830,-308.35,0.00014206,2]
[399469516,1766392241839,-2306.59,0.00014221,2]
[399469517,1766392241849,-433.0,0.00014242,2]
[399469518,1766392241858,-919.9347502,0.00014247,2]
[399469519,1766392241873,-2351.0,0.0001425,2]
[399469520,1766392241882,-8338.0,0.00014287,2]
[399469521,1766392241891,-190.01,0.00014387,2]
[399469522,1766392241900,-218.23,0.00014387,2]
[399469523,1766392241912,-10279.41003921,0.0001439,2]
[399469524,1766392241922,-980.15777282,0.0001443,2]
[399469525,1766392241931,-11104.579201,0.00014436,2]
[399469526,1766392241940,-2585.0501384,0.00014436,2]
[399469527,1766392241951,-269.2053129,0.00014478,2]
[399469528,1766392241961,-500.0,0.00014492,2]
[399469529,1766392241971,-500.0,0.00014492,2]
[399469530,1766392241980,-507.44195123,0.00014492,2]
[399469531,1766392241989,-150.0,0.00014492,2]
[399469532,1766392241999,-39757.25948396,0.00014492,2]
[399469533,1766392242008,-2306.59,0.00014495,2]
[399469534,1766392242017,-3301.98750385,0.0001451,2]
[399469535,1766392242026,-1600.0,0.00014523,2]
[399469536,1766392242035,-481.11,0.00014526,2]
[399469537,1766392242044,-1000.0,0.000146,2]
[399469538,1766392242053,-5682.0500933,0.00014734,2]
[399469539,1766392242062,-159.1358272,0.00014739,2]
[399469540,1766392242071,-1152.24771279,0.00014739,2]
[399469541,1766392242080,-1500.0,0.00014739,2]
[399469542,1766392242089,-1500.0,0.00014739,2]
[399469543,1766392242098,-1500.0,0.00014739,2]
[399469544,1766392242106,-1500.0,0.00014739,2]
[399469545,1766392242115,-500.0,0.00014739,2]
[399469546,1766392242124,-1500.0,0.00014739,2]
[399469547,1766392242134,-500.0,0.00014739,2]
[399469548,1766392242143,-1500.0,0.00014739,2]
[399469549,1766392242152,-1504.58016272,0.00014739,2]
[399469550,1766392242163,-1500.0,0.00014739,2]
[399469551,1766392242173,-500.0,0.00014739,2]
[399469552,1766392242182,-1500.0,0.00014739,2]
[399469553,1766392242191,-1500.0,0.00014739,2]
[399469554,1766392242201,-1500.0,0.00014739,2]
[399469555,1766392242210,-1500.0,0.00014739,2]
[399469556,1766392242219,-1500.0,0.00014739,2]
[399469557,1766392242229,-1500.0,0.00014739,2]
[399469558,1766392242239,-1500.0,0.00014739,2]
[399469559,1766392242248,-437.07935653,0.00014739,2]
[399469560,1766392242257,-1500.0,0.00014739,2]
[399469561,1766392242266,-1500.0,0.00014739,2]
[399469562,1766392242275,-2306.59,0.00014769,2]
[399469563,1766392242284,-1098.0,0.00014794,2]
[399469564,1766392242293,-1000.0,0.000148,2]
[399469565,1766392242304,-2477.7665355,0.00014808,2]
[399469566,1766392242314,-576.8026513,0.00014808,2]
[399469567,1766392242324,-308.35,0.00014882,2]
[399469568,1766392242333,-226.5471914,0.000149,2]
[399469569,1766392242343,-919.9347502,0.0001491,2]
[399469570,1766392242352,-320.72,0.00014911,2]
[399469571,1766392242361,-12473.8082112,0.00014956,2]
[399469572,1766392242370,-5014.92,0.00014999,2]
[399469573,1766392242379,-500.0,0.00014999,2]
[399469574,1766392242388,-500.0,0.00014999,2]
[399469575,1766392242398,-2041.02448075,0.00015,2]
[399469576,1766392242409,-1344.90035388,0.00015,14]
[399469577,1766392242419,-7945.49825452,0.00015,2]
[399469578,1766392242429,-21356.21903813,0.00015,2]
[399469579,1766392242440,-1154.92232765,0.00015,2]
[399469580,1766392242449,-1000.0,0.00015,2]
[399469581,1766392242458,-33588.22069818,0.00015,2]
[399469582,1766392242467,-2306.59,0.00015043,2]
[399469583,1766392242476,-980.15777282,0.00015048,2]
[399469584,1766392242485,-277.18,0.00015068,2]
[399469585,1766392242494,-151.0,0.00015068,2]
[399469586,1766392242503,-151.0,0.00015068,2]
[399469587,1766392242513,-151.0,0.00015068,2]
[399469588,1766392242522,-151.0,0.00015068,2]